fUSD/lending_fUSD_20240616
["ID","MTS","AMOUNT","RATE_DAILY","PERIOD"]
[329660917,1718551845492,-126.27584798,0.00025919,2]
[329660918,1718551845536,-373.72415202,0.00025919,2]
[329660919,1718551845553,-536.49,0.00026245,2]
[329660920,1718551845573,-164.57,0.00026257,2]
[329660921,1718551845585,-269.25,0.00026306,2]
[329660922,1718551845598,-4808.92,0.00026319,2]
[329660923,1718551845621,-821.49427359,0.00026372,2]
[329660924,1718551845632,-852.07,0.0002648,2]
[329660925,1718551845649,-4899.51,0.00026532,2]
[329660926,1718551845660,-167.12,0.00026586,2]
[329660927,1718551845671,-2500.0,0.000266,2]
[329660928,1718551845700,-626.62448516,0.0002665,2]
[329660929,1718551845712,-714.08,0.00026774,2]
[329660930,1718551845723,-151.0,0.00026919,5]
[329660931,1718551845734,-17812.44666351,0.00027,2]
[329660932,1718551845745,-2000.0,0.00027,2]
[329660933,1718551845757,-173.22,0.0002703,2]
[329660934,1718551845768,-160.0,0.00027084,2]
[329660935,1718551845780,-2014.98329277,0.000272,2]
[329660936,1718551845809,-1686.98620891,0.00027207,2]
[329660937,1718551845822,-2000.0,0.000273,2]
[329660938,1718551845833,-500.0,0.00027397,8]
[329660939,1718551845847,-478.69,0.00027397,8]
[329660940,1718551845858,-259.84245142,0.00027397,8]
[329660941,1718551845871,-500.0,0.00027397,8]
[329660942,1718551845884,-500.0,0.00027397,8]
[329660943,1718551845903,-500.0,0.00027397,8]
[329660944,1718551845917,-523.00667378,0.00027397,8]
[329660945,1718551845930,-500.0,0.00027397,8]
[329660946,1718551845959,-500.25,0.00027397,8]
[329660947,1718551845983,-597.40071294,0.00027397,8]
[329660948,1718551846000,-376.58050184,0.00027397,8]
[329660949,1718551846021,-641.97411589,0.00027397,8]
[329660950,1718551846062,-614.84,0.00027397,8]
[329660951,1718551846088,-544.97697407,0.00027397,8]
[329660952,1718551846111,-557.7849739,0.00027397,8]
[329660953,1718551846125,-253.75460498,0.00027397,8]
[329660954,1718551846137,-500.0,0.00027397,8]
[329660955,1718551846150,-500.0,0.00027397,8]
[329660956,1718551846185,-500.0,0.00027397,8]
[329660957,1718551846212,-572.75500545,0.00027397,8]
[329660958,1718551846238,-111.62045532,0.00027397,8]
[329660959,1718551846254,-514.55074733,0.00027397,8]
[329660960,1718551846278,-444.04155849,0.00027397,8]
[329660961,1718551846308,-55.95844151,0.00027397,8]
[329660962,1718551846320,-500.0,0.00027397,8]
[329660963,1718551846339,-500.0,0.00027397,8]
[329660964,1718551846374,-275.15371212,0.00027397,8]
[329660965,1718551846392,-470.99162474,0.00027397,8]
[329660978,1718551848615,-346.44906839,0.00024947,2]
[329660983,1718551851317,-226.81877563,0.0002082,2]
[329660984,1718551851329,-882.08293161,0.00024947,2]
[329660985,1718551851344,-29.00837526,0.00027397,8]
[329660986,1718551851355,-500.0,0.00027397,8]
[329660987,1718551851368,-500.0,0.00027397,8]
[329660988,1718551851383,-500.0,0.00027397,8]
[329660989,1718551851412,-500.0,0.00027397,8]
[329660990,1718551851446,-500.0,0.00027397,8]
[329660991,1718551851458,-500.0,0.00027397,8]
[329660993,1718551851477,-500.0,0.00027397,8]
[329660995,1718551851496,-500.0,0.00027397,8]
[329660996,1718551851525,-500.0,0.00027397,8]
[329660998,1718551851542,-450.64751989,0.00027397,8]
[329661000,1718551851569,-500.0,0.00027397,8]
[329661002,1718551851586,-500.0,0.00027397,8]
[329661005,1718551851602,-601.58095817,0.00027397,8]
[329661006,1718551851615,-500.0,0.00027397,8]
[329661007,1718551851630,-500.0,0.00027397,8]
[329661009,1718551851652,-500.0,0.00027397,8]
[329661011,1718551851667,-500.0,0.00027397,8]
[329661013,1718551851678,-354.92167418,0.00027397,8]
[329661015,1718551851708,-500.0,0.00027397,8]
[329661016,1718551851733,-500.0,0.00027397,8]
[329661018,1718551851754,-273.88674396,0.00027397,8]
[329661019,1718551851772,-500.0,0.00027397,8]
[329661020,1718551851783,-500.0,0.00027397,8]
[329661021,1718551851801,-500.0,0.00027397,8]
[329661022,1718551851812,-500.0,0.00027397,8]
[329661023,1718551851852,-500.0,0.00027397,8]
[329661024,1718551851872,-500.0,0.00027397,8]
[329661025,1718551851932,-500.0,0.00027397,8]
[329661026,1718551851944,-256.03616959,0.00027397,8]
[329661027,1718551851958,-259.76068525,0.00027397,8]
[329661028,1718551851969,-500.0,0.00027397,8]
[329661029,1718551851979,-525.86366893,0.00027397,8]
[329661030,1718551851991,-1419.65,0.00027397,8]
[329661031,1718551852010,-1419.65,0.00027397,8]
[329661032,1718551852026,-135.41898691,0.00027397,8]
[329661033,1718551852041,-1284.23101309,0.00027397,8]
[329661034,1718551852053,-454.93897441,0.00027397,8]
[329661035,1718551852077,-495.25454988,0.00027397,8]
[329661036,1718551852092,-500.0,0.00027397,8]
[329661037,1718551852105,-591.66230947,0.00027397,8]
[329661038,1718551852134,-500.0,0.00027397,8]
[329661039,1718551852146,-586.05123866,0.00027397,8]
[329661040,1718551852168,-500.0,0.00027397,8]
[329661041,1718551852180,-590.67,0.00027397,8]
[329661042,1718551852252,-382.51926484,0.00027397,8]
[329661043,1718551852285,-500.0,0.00027397,8]
[329661044,1718551852304,-500.0,0.00027397,8]
[329661045,1718551852322,-500.0,0.00027397,8]
[329661046,1718551852347,-500.0,0.00027397,8]
[329661047,1718551852364,-500.0,0.00027397,8]
[329661048,1718551852378,-500.0,0.00027397,8]
[329661049,1718551852397,-500.0,0.00027397,8]
[329661050,1718551852422,-500.0,0.00027397,8]
[329661051,1718551852444,-500.0,0.00027397,8]
[329661052,1718551852455,-500.0,0.00027397,8]
[329661053,1718551852466,-500.0,0.00027397,8]
[329661054,1718551852479,-291.85686068,0.00027397,8]
[329661055,1718551852490,-500.0,0.00027397,8]
[329661056,1718551852504,-500.0,0.00027397,8]
[329661057,1718551852520,-500.0,0.00027397,8]
[329661058,1718551852541,-500.0,0.00027397,2]
[329661059,1718551852561,-500.0,0.00027397,8]
[329661060,1718551852575,-500.0,0.00027397,8]
[329661061,1718551852594,-500.0,0.00027397,8]
[329661062,1718551852628,-500.0,0.00027397,8]
[329661063,1718551852640,-500.0,0.00027397,8]
[329661064,1718551852660,-500.0,0.00027397,8]
[329661065,1718551852671,-611.89,0.00027397,8]
[329661066,1718551852684,-611.89,0.00027397,8]
[329661067,1718551852696,-611.89,0.00027397,8]
[329661068,1718551852707,-500.0,0.00027397,8]
[329661069,1718551852724,-500.0,0.00027397,8]
[329661070,1718551852735,-500.0,0.00027397,8]
[329661071,1718551852752,-480.74616673,0.00027397,8]
[329661072,1718551852763,-500.0,0.00027397,8]
[329661073,1718551852774,-500.0,0.00027397,8]
[329661074,1718551852785,-500.0,0.00027397,8]
[329661075,1718551852802,-500.0,0.00027397,8]
[329661076,1718551852816,-500.0,0.00027397,8]
[329661077,1718551852840,-500.0,0.00027397,8]
[329661078,1718551852851,-340.96453286,0.00027397,8]
[329661079,1718551852861,-567.52102208,0.00027397,8]
[329661080,1718551852885,-500.0,0.00027397,8]
[329661081,1718551852896,-500.0,0.00027397,8]
[329661082,1718551852910,-500.0,0.00027397,8]
[329661083,1718551852922,-500.0,0.00027397,8]
[329661084,1718551852935,-500.0,0.00027397,8]
[329661085,1718551852949,-500.0,0.00027397,8]
[329661086,1718551852963,-500.0,0.00027397,8]
[329661087,1718551852986,-647.84042385,0.00027397,8]
[329661088,1718551852999,-500.0,0.00027397,8]
[329661089,1718551853018,-622.8073,0.00027397,8]
[329661090,1718551853032,-500.0,0.00027397,8]
[329661091,1718551853057,-500.0,0.00027397,8]
[329661092,1718551853121,-500.0,0.00027397,8]
[329661093,1718551853134,-500.0,0.00027397,8]
[329661094,1718551853171,-500.0,0.00027397,8]
[329661095,1718551853182,-500.0,0.00027397,8]
[329661096,1718551853216,-500.0,0.00027397,8]
[329661097,1718551853246,-500.0,0.00027397,8]
[329661098,1718551853259,-500.0,0.00027397,8]
[329661099,1718551853285,-500.0,0.00027397,8]
[329661100,1718551853302,-595.97655254,0.00027397,8]
[329661101,1718551853312,-500.0,0.00027397,8]
[329661102,1718551853326,-500.0,0.00027397,8]
[329661103,1718551853337,-500.0,0.00027397,8]
[329661104,1718551853352,-301.0282805,0.00027397,8]
[329661105,1718551853363,-500.0,0.00027397,8]
[329661106,1718551853376,-500.0,0.00027397,8]
[329661107,1718551853386,-500.0,0.00027397,8]
[329661108,1718551853404,-500.0,0.00027397,8]
[329661109,1718551853421,-637.0,0.00027397,8]
[329661110,1718551853432,-637.0,0.00027397,8]
[329661111,1718551853445,-637.0,0.00027397,8]
[329661112,1718551853468,-500.0,0.00027397,8]
[329661113,1718551853479,-500.0,0.00027397,8]
[329661114,1718551853497,-500.0,0.00027397,8]
[329661115,1718551853507,-500.0,0.00027397,8]
[329661116,1718551853518,-500.0,0.00027397,8]
[329661117,1718551853529,-500.0,0.00027397,8]
[329661118,1718551853541,-500.0,0.00027397,8]
[329661119,1718551853559,-500.0,0.00027397,8]
[329661120,1718551853570,-500.0,0.00027397,8]
[329661121,1718551853581,-500.0,0.00027397,2]
[329661122,1718551853593,-500.0,0.00027397,8]
[329661123,1718551853608,-500.0,0.00027397,8]
[329661124,1718551853623,-579.73531915,0.00027397,8]
[329661125,1718551853642,-500.0,0.00027397,8]
[329661126,1718551853653,-500.0,0.00027397,8]
[329661127,1718551853696,-500.0,0.00027397,8]
[329661128,1718551853734,-496.439111,0.00027397,8]
[329661129,1718551853761,-150.0,0.00027397,2]
[329661130,1718551853773,-159.71,0.00027397,2]
[329661131,1718551853788,-1079.58716094,0.000274,8]
[329661132,1718551853990,-150.7,0.0002591,2]
[329661133,1718551854001,-415.30294926,0.000274,8]
[329661134,1718551854022,-123.85999773,0.000274,2]
[329661135,1718551854096,-42.43536229,0.000274,2]
[329661136,1718551854116,-685.49226317,0.000274,2]
[329661137,1718551854132,-314.50773683,0.000274,2]
[329661138,1718551854146,-2000.0,0.000274,2]
[329661139,1718551854166,-492.49931319,0.000274,2]
[329661140,1718551854208,-444.44834743,0.000274,4]
[329661141,1718551854269,-2555.55165257,0.000274,4]
[329661142,1718551854280,-4933.47,0.00027437,2]
[329661143,1718551854319,-747.54415578,0.00027484,3]
[329661144,1718551854341,-549.13198539,0.0002749,2]
[329661145,1718551854363,-150.0,0.00027497,2]
[329661146,1718551854392,-150.0,0.00027497,2]
[329661147,1718551854426,-150.0,0.00027499,2]
[329661148,1718551854455,-150.0,0.00027499,2]
[329661149,1718551854472,-150.0,0.00027501,2]
[329661150,1718551854493,-150.0,0.00027508,2]
[329661151,1718551854507,-150.0,0.00027508,2]
[329661152,1718551854535,-150.0,0.00027513,2]
[329661153,1718551854547,-150.0,0.00027519,2]
[329661154,1718551854576,-150.0,0.0002752,2]
[329661155,1718551854588,-150.0,0.00027521,2]
[329661156,1718551854600,-150.0,0.00027524,2]
[329661157,1718551854611,-164.33,0.00027525,120]
[329661158,1718551854643,-150.0,0.00027528,2]
[329661159,1718551854660,-150.0,0.00027529,2]
[329661160,1718551854673,-150.0,0.00027529,2]
[329661161,1718551854716,-150.0,0.00027529,2]
[329661162,1718551854727,-150.0,0.00027533,2]
[329661163,1718551854752,-150.0,0.00027538,2]
[329661164,1718551854764,-150.0,0.00027544,2]
[329661165,1718551854798,-500.0,0.00027544,2]
[329661166,1718551854811,-150.0,0.00027546,2]
[329661167,1718551854838,-150.0,0.00027554,2]
[329661168,1718551854864,-150.0,0.00027574,2]
[329661169,1718551854875,-150.0,0.00027575,2]
[329661170,1718551854887,-150.0,0.00027577,2]
[329661171,1718551854960,-150.0,0.00027583,2]
[329661172,1718551854973,-150.0,0.00027586,2]
[329661173,1718551854991,-150.0,0.00027591,2]
[329661174,1718551855024,-150.0,0.00027593,2]
[329661175,1718551855041,-150.0,0.00027596,2]
[329661176,1718551855065,-150.0,0.00027606,2]
[329661177,1718551855087,-150.0,0.00027618,2]
[329661178,1718551855108,-150.0,0.0002762,2]
[329661179,1718551855135,-204.78620042,0.00027621,2]
[329661180,1718551855160,-150.0,0.00027633,2]
[329661181,1718551855184,-150.0,0.00027633,2]
[329661182,1718551855198,-1500.0,0.00027637,2]
[329661183,1718551855213,-150.0,0.00027638,2]
[329661184,1718551855228,-150.0,0.0002764,2]
[329661185,1718551855239,-150.0,0.00027648,2]
[329661186,1718551855251,-150.0,0.00027652,2]
[329661187,1718551855278,-150.0,0.0002766,2]
[329661188,1718551855293,-176.98889232,0.0002766,2]
[329661189,1718551855309,-176.24870704,0.00027661,2]
[329661190,1718551855322,-150.0,0.00027661,2]
[329661191,1718551855346,-203.45173277,0.00027661,2]
[329661192,1718551855359,-11412.1825,0.00027662,2]
[329661193,1718551855371,-199.36126685,0.00027662,2]
[329661194,1718551855381,-6752.64138281,0.00027662,2]
[329661195,1718551855393,-170.16176489,0.00027662,2]
[329661196,1718551855404,-349.0,0.00027664,5]
[329661197,1718551855418,-150.0,0.00027668,2]
[329661198,1718551855430,-219.44,0.00027671,3]
[329661199,1718551855446,-150.0,0.00027677,2]
[329661200,1718551855460,-150.0,0.00027681,2]
[329661201,1718551855474,-150.0,0.00027685,2]
[329661202,1718551855505,-150.0,0.00027685,2]
[329661203,1718551855517,-150.0,0.00027694,2]
[329661204,1718551855530,-150.0,0.00027697,2]
[329661205,1718551855570,-150.0,0.00027699,2]
[329661206,1718551855632,-291.0,0.000277,2]
[329661207,1718551855662,-2000.0,0.000277,2]
[329661208,1718551855676,-160.0,0.000277,2]
[329661209,1718551855699,-150.0,0.000277,5]
[329661210,1718551855720,-150.0,0.000277,5]
[329661211,1718551855745,-1500.0,0.00027702,2]
[329661212,1718551855776,-150.0,0.00027705,2]
[329661213,1718551855805,-150.0,0.00027708,2]
[329661214,1718551855817,-150.0,0.0002772,2]
[329661215,1718551855841,-150.0,0.00027721,2]
[329661216,1718551855871,-150.0,0.00027724,2]
[329661217,1718551855893,-150.0,0.00027727,2]
[329661218,1718551855920,-150.0,0.00027728,2]
[329661219,1718551855937,-150.0,0.00027733,2]
[329661220,1718551855973,-3483.67909787,0.00027735,2]
[329661221,1718551855994,-150.0,0.00027735,2]
[329661222,1718551856010,-150.0,0.00027737,2]
[329661223,1718551856023,-150.0,0.00027742,2]
[329661224,1718551856034,-150.0,0.00027747,2]
[329661225,1718551856045,-150.0,0.00027755,2]
[329661226,1718551856056,-152.3,0.00027756,2]
[329661227,1718551856068,-1419.65,0.00027758,8]
[329661228,1718551856080,-500.0,0.00027758,8]
[329661229,1718551856100,-500.0,0.00027758,8]
[329661230,1718551856148,-500.0,0.00027758,8]
[329661231,1718551856162,-500.0,0.00027758,8]
[329661232,1718551856175,-500.0,0.00027758,8]
[329661233,1718551856192,-500.0,0.00027758,8]
[329661234,1718551856208,-500.0,0.00027758,8]
[329661235,1718551856221,-500.0,0.00027758,8]
[329661236,1718551856235,-500.0,0.00027758,8]
[329661237,1718551856248,-500.0,0.00027759,2]
[329661238,1718551856259,-155.0,0.00027759,8]
[329661239,1718551856289,-500.0,0.00027759,2]
[329661240,1718551856313,-311.41659567,0.00027759,8]
[329661241,1718551856329,-500.53833548,0.00027759,3]
[329661242,1718551856343,-500.0,0.00027759,8]
[329661243,1718551856353,-500.0,0.00027759,8]
[329661244,1718551856365,-500.0,0.00027759,8]
[329661245,1718551856378,-500.0,0.00027759,8]
[329661246,1718551856390,-500.0,0.00027759,8]
[329661247,1718551856401,-500.0,0.00027759,8]
[329661248,1718551856421,-500.0,0.00027759,8]
[329661249,1718551856434,-500.0,0.00027759,8]
[329661250,1718551856449,-611.89,0.00027759,8]
[329661251,1718551856467,-500.0,0.00027759,8]
[329661252,1718551856478,-500.0,0.00027759,8]
[329661253,1718551856494,-413.15663266,0.00027759,8]
[329661254,1718551856505,-500.0,0.00027759,8]
[329661255,1718551856515,-500.0,0.00027759,8]
[329661256,1718551856525,-637.0,0.00027759,8]
[329661257,1718551856536,-500.0,0.00027759,8]
[329661258,1718551856546,-500.0,0.00027759,8]
[329661259,1718551856557,-500.0,0.00027759,8]
[329661260,1718551856569,-500.0,0.00027759,8]
[329661261,1718551856586,-284.78607888,0.0002776,2]
[329661262,1718551856596,-1096.67854593,0.0002776,2]
[329661263,1718551856607,-1393.67151135,0.0002776,2]
[329661264,1718551856617,-177.56539034,0.0002776,2]
[329661265,1718551856679,-155.0,0.0002776,2]
[329661266,1718551856693,-2338.00349978,0.0002776,2]
[329661267,1718551856704,-725.18597837,0.0002776,5]
[329661268,1718551856742,-3101.77582154,0.0002776,2]
[329661269,1718551856756,-792.86995364,0.0002776,2]
[329661270,1718551856794,-429.97845481,0.0002776,2]
[329661271,1718551856811,-551.9435641,0.0002776,2]
[329661272,1718551856824,-4402.72736159,0.0002776,2]
[329661273,1718551856834,-155.0,0.0002776,2]
[329661274,1718551856845,-155.0,0.0002776,2]
[329661275,1718551856856,-482.24542476,0.0002776,2]
[329661276,1718551856869,-155.0,0.0002776,2]
[329661277,1718551856885,-155.0,0.0002776,2]
[329661278,1718551856906,-176.62524942,0.0002776,2]
[329661279,1718551856929,-159.25412406,0.0002776,2]
[329661280,1718551856958,-204.6791218,0.0002776,2]
[329661281,1718551856973,-282.68093185,0.0002776,2]
[329661282,1718551856986,-537.64011299,0.0002776,2]
[329661283,1718551857004,-2086.07388842,0.0002776,2]
[329661284,1718551857029,-2411.20892324,0.0002776,2]
[329661285,1718551857051,-1227.60404342,0.0002776,2]
[329661286,1718551857062,-762.11180794,0.0002776,2]
[329661287,1718551857074,-507.99361136,0.0002776,2]
[329661288,1718551857084,-328.19325312,0.0002776,2]
[329661289,1718551857096,-1489.2883817,0.0002776,2]
[329661290,1718551857106,-449.49506021,0.0002776,2]
[329661291,1718551857117,-1805.74855387,0.0002776,2]
[329661292,1718551857127,-349.34307445,0.0002776,2]
[329661293,1718551857142,-792.50308893,0.0002776,2]
[329661294,1718551857158,-155.0,0.0002776,2]
[329661295,1718551857175,-7138.77609652,0.0002776,2]
[329661296,1718551857203,-201.61319405,0.0002776,2]
[329661297,1718551857214,-235.55230443,0.0002776,2]
[329661298,1718551857227,-566.7148777,0.0002776,2]
[329661299,1718551857239,-177.53686684,0.0002776,2]
[329661300,1718551857250,-2613.07948524,0.0002776,2]
[329661301,1718551857261,-162.67638864,0.0002776,2]
[329661302,1718551857272,-155.0,0.0002776,2]
[329661303,1718551857286,-217.94215905,0.0002776,2]
[329661304,1718551857297,-155.41106129,0.0002776,2]
[329661305,1718551857322,-868.37780365,0.0002776,3]
[329661306,1718551857334,-791.01559774,0.0002776,2]
[329661307,1718551857366,-155.0,0.0002776,2]
[329661308,1718551857378,-155.0,0.0002776,2]
[329661309,1718551857390,-261.81219917,0.0002776,2]
[329661310,1718551857404,-525.37495999,0.0002776,2]
[329661311,1718551857420,-5000.0,0.0002776,7]
[329661312,1718551857443,-258.37137548,0.0002776,2]
[329661313,1718551857454,-326.42008962,0.0002776,2]
[329661314,1718551857479,-155.0,0.0002776,2]
[329661315,1718551857490,-3898.38718173,0.0002776,2]
[329661316,1718551857507,-1000.0,0.0002776,2]
[329661317,1718551857530,-225.48556248,0.0002776,2]
[329661318,1718551857546,-536.56302442,0.0002776,2]
[329661319,1718551857558,-500.0,0.0002776,8]
[329661320,1718551857570,-150.0,0.0002776,15]
[329661321,1718551857597,-500.0,0.0002776,8]
[329661322,1718551857625,-500.0,0.0002776,8]
[329661323,1718551857635,-500.0,0.0002776,8]
[329661324,1718551857646,-1419.65,0.0002776,8]
[329661325,1718551857660,-500.0,0.0002776,8]
[329661326,1718551857686,-500.0,0.0002776,8]
[329661327,1718551857700,-362.9964581,0.0002776,8]
[329661328,1718551857713,-500.0,0.0002776,8]
[329661329,1718551857738,-500.0,0.0002776,8]
[329661330,1718551857755,-500.0,0.0002776,8]
[329661331,1718551857769,-500.0,0.0002776,8]
[329661332,1718551857780,-500.0,0.0002776,8]
[329661333,1718551857801,-500.0,0.0002776,8]
[329661334,1718551857813,-500.0,0.0002776,8]
[329661335,1718551857827,-500.0,0.0002776,8]
[329661336,1718551857839,-500.0,0.0002776,8]
[329661337,1718551857850,-292.18945619,0.0002776,2]
[329661338,1718551857861,-23276.91021335,0.0002776,2]
[329661339,1718551857877,-637.0,0.0002776,8]
[329661340,1718551857893,-500.0,0.0002776,8]
[329661341,1718551857914,-500.0,0.0002776,8]
[329661342,1718551857927,-211.1239178,0.00027761,2]
[329661343,1718551857943,-1000.0,0.00027761,2]
[329661344,1718551857954,-150.0,0.00027761,2]
[329661345,1718551857977,-500.0,0.00027761,8]
[329661346,1718551857987,-500.0,0.00027761,8]
[329661347,1718551858013,-368.57,0.00027761,8]
[329661348,1718551858027,-1500.0,0.00027761,90]
[329661349,1718551858193,-500.0,0.00027761,8]
[329661350,1718551858256,-500.0,0.00027761,8]
[329661351,1718551858267,-500.0,0.00027761,8]
[329661352,1718551858290,-500.0,0.00027761,8]
[329661353,1718551858301,-500.0,0.00027761,8]
[329661354,1718551858314,-500.0,0.00027761,8]
[329661355,1718551858325,-500.0,0.00027761,8]
[329661356,1718551858337,-290.61149088,0.00027761,8]
[329661357,1718551858350,-561.14,0.00027761,8]
[329661358,1718551858363,-155.43573742,0.00027761,8]
[329661359,1718551858373,-500.0,0.00027761,8]
[329661360,1718551858386,-500.0,0.00027761,8]
[329661361,1718551858413,-500.0,0.00027761,8]
[329661362,1718551858438,-500.0,0.00027761,8]
[329661363,1718551858462,-500.0,0.00027761,8]
[329661364,1718551858473,-500.0,0.00027761,8]
[329661365,1718551858484,-500.0,0.00027761,8]
[329661366,1718551858496,-500.0,0.00027761,8]
[329661367,1718551858515,-500.0,0.00027761,8]
[329661368,1718551858531,-500.0,0.00027761,8]
[329661369,1718551858543,-500.0,0.00027761,8]
[329661370,1718551858556,-500.0,0.00027761,8]
[329661371,1718551858575,-500.0,0.00027761,8]
[329661372,1718551858590,-500.0,0.00027761,8]
[329661373,1718551858608,-500.0,0.00027761,8]
[329661374,1718551858637,-500.0,0.00027761,8]
[329661375,1718551858648,-500.0,0.00027761,8]
[329661376,1718551858658,-500.0,0.00027761,8]
[329661377,1718551858670,-500.0,0.00027761,8]
[329661378,1718551858690,-500.0,0.00027761,8]
[329661379,1718551858728,-500.0,0.00027761,8]
[329661380,1718551858761,-500.0,0.00027761,8]
[329661381,1718551858773,-500.0,0.00027761,8]
[329661382,1718551858788,-500.0,0.00027761,8]
[329661383,1718551858804,-259.12,0.00027761,8]
[329661384,1718551858814,-500.0,0.00027761,8]
[329661385,1718551858825,-500.0,0.00027761,8]
[329661386,1718551858838,-500.0,0.00027761,8]
[329661387,1718551858853,-500.0,0.00027761,8]
[329661388,1718551858866,-500.0,0.00027761,8]
[329661389,1718551858881,-500.0,0.00027761,8]
[329661390,1718551858896,-500.0,0.00027761,8]
[329661391,1718551858908,-589.49073527,0.00027761,8]
[329661392,1718551858920,-500.0,0.00027761,8]
[329661393,1718551858936,-328.5825,0.00027761,8]
[329661394,1718551858984,-391.36342433,0.00027761,8]
[329661395,1718551859000,-1419.65,0.00027761,8]
[329661396,1718551859027,-1419.65,0.00027761,8]
[329661397,1718551859045,-1419.65,0.00027761,8]
[329661398,1718551859062,-1419.65,0.00027761,8]
[329661399,1718551859104,-1419.65,0.00027761,8]
[329661400,1718551859129,-1419.65,0.00027761,8]
[329661401,1718551859141,-1419.65,0.00027761,8]
[329661402,1718551859153,-1419.65,0.00027761,8]
[329661403,1718551859168,-1419.65,0.00027761,8]
[329661404,1718551859180,-1419.65,0.00027761,8]
[329661405,1718551859193,-1419.65,0.00027761,8]
[329661406,1718551859208,-1419.65,0.00027761,8]
[329661407,1718551859222,-1419.65,0.00027761,8]
[329661408,1718551859235,-1419.65,0.00027761,8]
[329661409,1718551859247,-1419.65,0.00027761,8]
[329661410,1718551859258,-1419.65,0.00027761,8]
[329661411,1718551859272,-1419.65,0.00027761,8]
[329661412,1718551859290,-1419.65,0.00027761,8]
[329661413,1718551859305,-1419.74167557,0.00027761,8]
[329661414,1718551859316,-500.0,0.00027761,8]
[329661415,1718551859328,-152.91048445,0.00027761,8]
[329661416,1718551859342,-500.0,0.00027761,8]
[329661417,1718551859368,-500.0,0.00027761,8]
[329661418,1718551859381,-500.0,0.00027761,8]
[329661419,1718551859392,-500.0,0.00027761,8]
[329661420,1718551859406,-500.0,0.00027761,8]
[329661421,1718551859425,-500.0,0.00027761,8]
[329661422,1718551859439,-500.0,0.00027761,8]
[329661423,1718551859509,-500.0,0.00027761,8]
[329661424,1718551859534,-500.0,0.00027761,8]
[329661425,1718551859557,-500.0,0.00027761,8]
[329661426,1718551859595,-500.0,0.00027761,8]
[329661427,1718551859655,-500.0,0.00027761,8]
[329661428,1718551859680,-500.0,0.00027761,8]
[329661429,1718551859732,-500.0,0.00027761,8]
[329661430,1718551859799,-500.0,0.00027761,8]
[329661431,1718551859838,-500.0,0.00027761,8]
[329661432,1718551859888,-500.0,0.00027761,8]
[329661433,1718551859905,-170.95004158,0.00027761,8]
[329661434,1718551859918,-404.06774968,0.00027761,8]
[329661435,1718551859953,-500.0,0.00027761,8]
[329661436,1718551859971,-500.0,0.00027761,8]
[329661437,1718551859983,-500.0,0.00027761,8]
[329661438,1718551860027,-500.0,0.00027761,8]
[329661439,1718551860064,-500.0,0.00027761,8]
[329661440,1718551860080,-500.0,0.00027761,8]
[329661441,1718551860118,-500.0,0.00027761,8]
[329661442,1718551860143,-500.0,0.00027761,8]
[329661443,1718551860164,-500.0,0.00027761,8]
[329661444,1718551860208,-500.0,0.00027761,8]